Cogmind - Beta 16 --- EXPLORER MODE // 2025.11.25 @ 09:42:12 Player: K.K.Y. Result: Destroyed by Y-64 Sentinel with Wave Gun Performance ------------- Evolutions (4) 2000 Regions Visited (8) 1600 Robots Destroyed (78) 390 Value Destroyed (2767) 2767 Prototype IDs (35) 700 Alien Tech Used (0) 0 Bonus (2986) 2986 TOTAL SCORE: 10443 Bonus ------- Follower Combat Kills 186 Delivered SUBCON Basin 2000 Registered with UFD 300 Met Optimus in HQ 500 Cogmind --------- Core Integrity 0/850 Matter 169/300 Energy 97/100 System Corruption 4% Temperature Cool (20) Movement Walking (120) Location -6/Lower Caves Parts ------- > --- POWER (2) -------- (None) > --- PROPULSION (4) --- Flexi-carbon Leg > --- UTILITY (7) ------ Large Storage Unit A0-MCA's Component Scanner > --- WEAPON (3) ------- (None) > --- INVENTORY (15) --- Improved Cryofiber Web Light Humpback Humpback Enhanced Scrap Shield Authchip [Processor] Authchip [Armor] Magnetic Acceleration Cannon DRS Beacon (Ready) Peak State ------------ > --- POWER ------------ Light Angular Momentum Engine F-cell Engine > --- PROPULSION ------- Armored Treads Medium Treads Medium Treads Improved Medium Treads > --- UTILITY ---------- Large Storage Unit Structural Scanner Machine Analyzer Advanced Sensor Array Experimental Signal Interpreter A0-MCA's Component Scanner Tech Extrapolator > --- WEAPON ----------- Coil Gun Magnetic Acceleration Cannon Remote Datajack > --- INVENTORY -------- Flexi-carbon Leg Myomer Leg Improved Cryofiber Web Advanced Heat Sink Light Humpback Humpback Enhanced Scrap Shield Authchip [Processor] Authchip [Armor] Force Rifle CPS Tube DRS Beacon [Rating: 80] Favorites ----------- Power Light Nuclear Core Engine Light Angular Momentum Engine Power Core Light Nuclear Core Propulsion Light Treads Treads Light Treads Leg Cargo Legs Utility Structural Scanner Device Structural Scanner Storage Large Storage Unit Processor Tech Extrapolator Hackware Hacking Suite Protection Makeshift Light Armor Plating Weapon Improved Medium Laser Energy Gun Improved Medium Laser Ballistic Gun Coil Gun Ballistic Cannon Magnetic Acceleration Cannon Special Weapon Remote Datajack Build | -11 -10 -10 -10 -9 -9 -6 -6 -6 ------- Run | Yrd Mat Min Sub Rec Scr Fac Low Low Slots Evolved 9 | . 1 . . . . 8 . . Power 1 | . . . . . . 1 . . Propulsion 2 | . . . . . . 2 . . Utility 5 | . 1 . . . . 4 . . Weapon 1 | . . . . . . 1 . . Parts Attached 66 | 7 4 . 18 2 9 17 3 6 Power 10 | 1 1 . 3 . 1 3 1 . Engine 6 | 1 . . 2 . . 3 . . Core 4 | . 1 . 1 . 1 . 1 . Reactor . | . . . . . . . . . Propulsion 16 | 2 . . 5 . 1 5 1 2 Treads 13 | 2 . . 4 . 1 5 1 . Leg 3 | . . . 1 . . . . 2 Wheel . | . . . . . . . . . Hover . | . . . . . . . . . Flight . | . . . . . . . . . Utility 23 | 2 1 . 7 2 5 4 . 2 Device 5 | 1 . . 2 . . 1 . 1 Storage 7 | 1 1 . 2 . 3 . . . Processor 5 | . . . . 2 1 2 . . Hackware 2 | . . . . . . 1 . 1 Protection 4 | . . . 3 . 1 . . . Artifact . | . . . . . . . . . Weapon 17 | 2 2 . 3 . 2 5 1 2 Energy Gun 8 | 2 2 . 2 . 1 . . 1 Energy Cannon . | . . . . . . . . . Ballistic Gun 2 | . . . . . 1 1 . . Ballistic Cannon 3 | . . . . . . 3 . . Launcher . | . . . . . . . . . Special Weapon 4 | . . . 1 . . 1 1 1 Impact Weapon . | . . . . . . . . . Slashing Weapon . | . . . . . . . . . Piercing Weapon . | . . . . . . . . . Special Melee Weapon . | . . . . . . . . . Unidentified Prototypes 1 | . 1 . . . . . . . Parts Lost 26 | . 1 . 9 . . 2 1 13 Power 5 | . 1 . 2 . . . . 2 Propulsion 7 | . . . 4 . . . . 3 Utility 7 | . . . . . . 1 1 5 Weapon 7 | . . . 3 . . 1 . 3 Highest Loss Streak 13 | . 1 . 3 . . 1 1 13 To Critical Strikes . | . . . . . . . . . Average Backups 12 | 2 6 12 14 11 11 11 11 9 Power . | . . 1 1 . . . . . Propulsion 2 | . . 1 3 3 1 1 2 1 Utility 6 | 1 3 7 6 6 6 6 6 6 Weapon 2 | . 1 3 2 1 2 1 1 . Tool/Special . | . . . . . . . . . Unused Backups 42 | . . . 18 . 16 3 1 4 Power 5 | . . . 2 . 3 . . . Propulsion 5 | . . . 4 . 1 . . . Utility 16 | . . . 7 . 3 2 . 4 Weapon 16 | . . . 5 . 9 1 1 . Tool/Special . | . . . . . . . . . Average Slot Usage (%) 82 | . 86 87 79 68 83 92 99 76 Engine 3 | . 6 . 5 . . 8 7 4 Core 6 | . 5 12 5 10 11 2 4 3 Treads 14 | . 25 25 12 . 13 23 25 18 Leg 3 | . . . 3 10 4 . . . Device 9 | . 12 12 11 10 4 11 11 5 Storage 10 | . 12 12 13 10 10 6 6 6 Processor 8 | . . . . 8 15 18 25 21 Protection 2 | . . . 4 . . . . . Energy Gun 15 | . 24 25 17 20 17 . . 3 Ballistic Gun 2 | . . . . . 4 6 6 1 Ballistic Cannon 1 | . . . . . . 5 6 4 Special Weapon 2 | . . . 4 . . 5 6 4 Peak Build Rating 80 | 7 14 15 51 51 44 79 80 79 Average Rating 37 | 4 11 14 27 40 35 72 79 62 On Entrance 35 | . 7 14 15 51 41 37 79 75 Avg Prop Armor Cover (%) . | . . . . . . . . . Naked Turns . | . . . . . . . . . Heaviest Build 223 | 20 32 32 81 63 223 59 60 60 Greatest Support 108 | 40 40 40 55 55 55 108 106 106 Greatest Overweight (x) 19 | 4 . . 19 1 5 1 . 6 Average Overweight (x) . | . . . 1 1 . . . . Largest Inventory Capacity 35 | 10 15 15 25 25 35 15 15 15 Average Capacity 19 | 8 13 15 21 25 18 15 15 15 Most Carried 30 | 7 10 14 25 25 30 15 15 15 Average Carried 15 | 2 6 12 19 14 13 14 14 13 Final Capacity 25 | 10 15 15 25 25 15 15 15 15 Final Carried 25 | 2 9 14 25 17 15 14 15 11 Class Distribution -------------------- 53% | Hacker-Mutant 24% | Commander-Mutant 17% | Hacker-Skirmisher 3% | Hauler-Mutant Dominant Class ---------------- Hacker-Mutant | -10/Materials Hacker-Mutant | -10/Mines Hacker-Mutant | -10/Subcaves Commander-Mutant | -9/Recycling Commander-Mutant | -9/Scraptown Hacker-Skirmisher | -6/Factory Hacker-Skirmisher | -6/Lower Caves Hacker-Skirmisher | -6/Lower Caves Resources | -11 -10 -10 -10 -9 -9 -6 -6 -6 ----------- Run | Yrd Mat Min Sub Rec Scr Fac Low Low Matter Collected 3989 | 233 77 . 1737 498 244 829 302 69 Remotely . | . . . . . . . . . Salvage Created 2910 | . 487 263 506 228 . 996 70 360 Parts 140 | . 28 19 25 15 . 40 4 9 Haulers Intercepted 3 | . 1 . . . . 2 . . Recyclers Shooed . | . . . . . . . . . Parts Field Recycled . | . . . . . . . . . Retrieved Matter . | . . . . . . . . . Parts Self-Destructed . | . . . . . . . . . Prevented . | . . . . . . . . . Parts Restored . | . . . . . . . . . Kills | -11 -10 -10 -10 -9 -9 -6 -6 -6 ------- Run | Yrd Mat Min Sub Rec Scr Fac Low Low Combat Hostiles Destroyed 61 | . 9 8 13 4 . 18 2 7 Guns 42 | . 9 8 12 4 . 4 1 4 Cannons 17 | . . . 1 . . 12 1 3 AOE 2 | . . . . . . 2 . . Classes Destroyed 17 | . 8 1 3 2 . 3 . . Worker 3 | . 1 . . . . 2 . . Builder 1 | . . . . 1 . . . . Tunneler 1 | . . 1 . . . . . . Hauler 3 | . 1 . . . . 2 . . Recycler 1 | . 1 . . . . . . . Mechanic 2 | . 1 . . . . 1 . . Operator 1 | . . . . . . 1 . . Turret 2 | . . . 2 . . . . . Watcher 3 | . 2 . . . . 1 . . Swarmer 14 | . 5 4 3 . . . . 2 Grunt 19 | . 3 4 1 . . 8 . 3 Brawler 4 | . . . . . . 2 . 2 Sentry 6 | . . . 2 3 . 1 . . Hunter 2 | . . . . . . 2 . . Programmer 8 | . . . . 1 . 5 2 . Cobbler 1 | . . . 1 . . . . . Subdweller 8 | . 1 . 7 . . . . . Best Kill Streak 5 | . 3 4 3 2 . 4 1 5 Combat Bots Only 5 | . 3 4 3 2 . 3 1 5 Max Kills in Single Turn 3 | . 2 1 1 1 . 3 1 1 Gunslinging 1 | . 1 . . . . . . . Exploded 2 | . . . . . . 2 . . Melee . | . . . . . . . . . Uniques/NPCs Destroyed . | . . . . . . . . . Combat | -11 -10 -10 -10 -9 -9 -6 -6 -6 -------- Run | Yrd Mat Min Sub Rec Scr Fac Low Low Hostile Shots Fired 548 | . 30 17 158 20 . 122 28 173 Missed 151 | . 10 6 51 3 . 38 10 33 Hits 397 | . 20 11 107 17 . 84 18 140 Melee 33 | . . . . . . 4 . 29 Projectile 364 | . 20 11 107 17 . 80 18 111 AOE 7 | . . . 7 . . . . . Critical Strikes 24 | . . . 3 . . 9 1 11 Part Disruptions 1 | . . . . . . 1 . . Damage Taken 4734 | . 190 74 1146 164 . 930 182 2048 Core 1072 | . 41 20 129 20 . 106 . 756 Absorbed by Shields . | . . . . . . . . . Ignored by Resistances 2829 | . 120 47 693 103 . 555 108 1203 Core Remaining (%) 58 | 100 . . . . 16 . . . Volleys Fired 244 | . 30 11 94 9 . 66 6 28 Largest 2 | . 2 2 2 2 . 2 2 2 Hottest 156 | . 112 112 156 112 . 80 74 124 Shots Fired 472 | . 60 22 185 19 . 123 14 49 Gun 351 | . 60 22 154 19 . 63 7 26 Cannon 88 | . . . . . . 59 7 22 Launcher . | . . . . . . . . . Special 33 | . . . 31 . . 1 . 1 Kinetic 164 | . . . . . . 118 14 32 Thermal 288 | . 46 22 185 19 . . . 16 Explosive . | . . . . . . . . . Electromagnetic 18 | . 14 . . . . 4 . . Robot Hit Streak 27 | . 26 6 27 18 . 23 17 20 Robot Miss Streak 2 | . 2 1 1 1 . 2 1 1 Penetration Max 1 | . . . . . . 1 . . Secondary Targets 2 | . 1 . 1 . . . . . Max Gunslinging Chain 1 | . 1 . 1 . . . . . Shots Hit Robots 340 | . 43 13 112 18 . 102 10 42 Core Hits 135 | . 22 11 32 8 . 47 3 12 Critical Kills 3 | . . . . . . 1 . 2 Critical Parts Destroyed 3 | . . . . . . 2 . 1 Critical Strikes 33 | . 3 1 13 3 . 9 . 4 Burn 20 | . 3 1 13 3 . . . . Destroy 7 | . . . . . . 4 . 3 Blast 6 | . . . . . . 5 . 1 Melee Attacks . | . . . . . . . . . Impact . | . . . . . . . . . Slashing . | . . . . . . . . . Piercing . | . . . . . . . . . Sneak Attacks . | . . . . . . . . . Combat Hostiles . | . . . . . . . . . Follow-up Attacks . | . . . . . . . . . Damage Inflicted 7338 | . 632 224 1914 339 . 2823 309 1097 Guns 4984 | . 632 221 1866 335 . 1253 159 518 Cannons 2070 | . . . . . . 1342 150 578 Explosions 217 | . . . . . . 217 . . Melee . | . . . . . . . . . Ramming 19 | . . 3 . 4 . 11 . 1 Kinetic 3641 | . . . . . . 2550 309 782 Thermal 3453 | . 452 221 1914 335 . 217 . 314 Explosive . | . . . . . . . . . Electromagnetic 225 | . 180 . . . . 45 . . Impact . | . . . . . . . . . Slashing . | . . . . . . . . . Piercing . | . . . . . . . . . Highest Corruption 4 | . . . . 1 . 3 3 4 Average Corruption 2 | . . . . 1 . 2 3 3 Corruption Purged . | . . . . . . . . . Corruption Blocked . | . . . . . . . . . Effects 50 | . . . . 7 . 17 19 7 Message Errors 9 | . . . . 1 . 3 5 . Matter Fused 12 | . . . . 1 . 7 3 1 Heat Flow Errors 4 | . . . . . . 1 2 1 Energy Discharges 6 | . . . . 1 . 1 3 1 Parts Rejected 3 | . . . . . . 2 . 1 Parts Fused 1 | . . . . . . . 1 . Data Loss (minor) 9 | . . . . 3 . 3 2 1 Data Loss (major) 1 | . . . . . . . 1 . Misfires 4 | . . . . 1 . . 2 1 Weapon Failures 1 | . . . . . . . . 1 Overload Shots . | . . . . . . . . . Overflow Damage 96 | . . . . . . 48 46 2 Projectiles 96 | . . . . . . 48 46 2 Explosions . | . . . . . . . . . Melee . | . . . . . . . . . Knockbacks 13 | . . . . . . 7 1 5 Impact . | . . . . . . . . . Kinetic 12 | . . . . . . 7 1 4 Secondary 1 | . . . . . . . . 1 Self-Inflicted Damage . | . . . . . . . . . Shots . | . . . . . . . . . Rammed 2 | . . 1 . . . . . 1 Targets Rammed 4 | . . 1 . 1 . 1 . 1 Kicked 1 | . . . . 1 . . . . Crushed 1 | . . . . . . 1 . . Highest Temperature 371 | . 171 177 102 312 . 289 203 371 Average Temperature 58 | . 56 66 20 113 . 32 51 120 Received Heat Transfer 1528 | . 66 39 393 45 . 261 24 700 Effects 3 | . . . . 1 . . . 2 Interference 2 | . . . . . . . . 2 Matter Decay 1 | . . . . 1 . . . . Siege Activations . | . . . . . . . . . Martial Activations . | . . . . . . . . . Shielding Activations . | . . . . . . . . . Robots Disrupted . | . . . . . . . . . Combat Hostiles . | . . . . . . . . . Robots Corrupted . | . . . . . . . . . Combat Hostiles . | . . . . . . . . . Parts Fried . | . . . . . . . . . Impact Corruptions . | . . . . . . . . . Robots Melted . | . . . . . . . . . Combat Hostiles . | . . . . . . . . . Parts Melted 8 | . . 1 4 3 . . . . Heat Transferred 8482 | . 1295 555 5095 925 . 150 . 462 Parts Sabotaged . | . . . . . . . . . Parts Stolen . | . . . . . . . . . Parts Stripped . | . . . . . . . . . Power Chain Reactions . | . . . . . . . . . Alert | -11 -10 -10 -10 -9 -9 -6 -6 -6 ------- Run | Yrd Mat Min Sub Rec Scr Fac Low Low Maximum Alert Level . | . . . . . . . . . Low Security (%) 100 | 100 100 100 . 100 . 100 . . Level 1 . | . . . . . . . . . Level 2 . | . . . . . . . . . Level 3 . | . . . . . . . . . Level 4 . | . . . . . . . . . Level 5 . | . . . . . . . . . High Security . | . . . . . . . . . Max Security . | . . . . . . . . . Peak Influence 111 | . 65 85 . 40 . 111 . . Initial . | . . . . . . . . . Average 6 | . 10 12 . . . 8 . . Influence Increases 1678 | . 291 247 190 90 . 590 60 210 Destroy 0b10 Robot/C 1140 | . 160 200 160 80 . 360 40 140 Destroy 0b10 Robot/NC 75 | . 30 5 . 5 . 35 . . Destroy Leader 232 | . 36 40 . . . 126 20 10 Allied During Kill 2 | . . 2 . . . . . . Successful Hack 5 | . . . . 5 . . . . Disable Machine 40 | . 4 . . . . 36 . . Destroy Structure 34 | . 1 . . . . 33 . . Partial Spotted 30 | . 30 . . . . . . . Lose Combat Pursuer 120 | . 30 . 30 . . . . 60 Influence Decreases 1678 | . 291 247 190 90 . 590 60 210 Time Decay 1532 | . 281 247 150 90 . 574 60 130 Lost Part 136 | . 10 . 40 . . 6 . 80 Lost Ally 10 | . . . . . . 10 . . Squads Dispatched 7 | . . . . . . 6 . 1 Investigation . | . . . . . . . . . Extermination 4 | . . . . . . 4 . . Reinforcement 2 | . . . . . . 2 . . Assault 1 | . . . . . . . . 1 Garrison . | . . . . . . . . . Intercept . | . . . . . . . . . Searches Triggered . | . . . . . . . . . Construction Impeded . | . . . . . . . . . Haulers Reinforced 1 | . . . . . . 1 . . Active Scanning Responses . | . . . . . . . . . Cargo Convoy Interrupts . | . . . . . . . . . Stealth | -11 -10 -10 -10 -9 -9 -6 -6 -6 --------- Run | Yrd Mat Min Sub Rec Scr Fac Low Low Distress Signals 1 | . . . . . . 1 . . Communications Jammed . | . . . . . . . . . Distress Signals . | . . . . . . . . . Times Spotted 99 | . 17 10 28 4 . 21 3 16 Peak Tracking Total 8 | . 3 2 6 2 . 3 1 8 Tactical Retreats 7 | . 2 . 1 . . . . 4 Traps | -11 -10 -10 -10 -9 -9 -6 -6 -6 ------- Run | Yrd Mat Min Sub Rec Scr Fac Low Low Traps Triggered 4 | . 2 . 1 . . 1 . . Indirectly . | . . . . . . . . . Trap Hack Attempts . | . . . . . . . . . Triggered . | . . . . . . . . . Disarmed . | . . . . . . . . . Reprogrammed . | . . . . . . . . . Reused . | . . . . . . . . . Traps Extracted . | . . . . . . . . . Installed . | . . . . . . . . . Triggered . | . . . . . . . . . Most Traps Carried 2 | . . . 2 . 1 . . . Machines | -11 -10 -10 -10 -9 -9 -6 -6 -6 ---------- Run | Yrd Mat Min Sub Rec Scr Fac Low Low Machines Disabled 13 | . 1 . 3 . . 9 . . Max in Single Turn 5 | . 1 . 1 . . 5 . . Machines Repaired . | . . . . . . . . . Machines Dismantled . | . . . . . . . . . Machines Sabotaged . | . . . . . . . . . Overloaded Fab Kills . | . . . . . . . . . Hacking | -11 -10 -10 -10 -9 -9 -6 -6 -6 --------- Run | Yrd Mat Min Sub Rec Scr Fac Low Low Machines Accessed 17 | . . . 4 9 1 2 1 . Terminals 5 | . . . . 4 . 1 . . Fabricators 1 | . . . . . . 1 . . Repair Stations . | . . . . . . . . . Recycling Units 5 | . . . . 5 . . . . Scanalyzers . | . . . . . . . . . Garrison Access . | . . . . . . . . . Total Hacks 24 | . . . 7 13 1 2 1 . Successful 18 | . . . 7 9 1 . 1 . Failed 6 | . . . . 4 . 2 . . Catastrophic 1 | . . . . . . 1 . . Database Lockouts . | . . . . . . . . . Manual 6 | . . . . 6 . . . . Terminals 7 | . . . . 6 . 1 . . Fabricators 1 | . . . . . . 1 . . Repair Stations . | . . . . . . . . . Recycling Units 7 | . . . . 7 . . . . Scanalyzers . | . . . . . . . . . Garrison Access . | . . . . . . . . . Terminal Hacks 9 | . . . 7 . 1 . 1 . Record 5 | . . . 4 . 1 . . . Open Door 2 | . . . 1 . . . 1 . Proto ID Catalog 1 | . . . 1 . . . . . Release Object 1 | . . . 1 . . . . . Fabricator Hacks . | . . . . . . . . . Repair Station Hacks . | . . . . . . . . . Recycling Unit Hacks 5 | . . . . 5 . . . . Retrieve Components 5 | . . . . 5 . . . . Scanalyzer . | . . . . . . . . . Garrison Access Hacks . | . . . . . . . . . Unauthorized Hacks 4 | . . . . 4 . . . . Terminals 4 | . . . . 4 . . . . Botnet 4 | . . . . 4 . . . . Fabricators . | . . . . . . . . . Repair Stations . | . . . . . . . . . Recycling Units . | . . . . . . . . . Scanalyzers . | . . . . . . . . . Garrison Access . | . . . . . . . . . Data Cores Recovered . | . . . . . . . . . Used . | . . . . . . . . . Hacking Detections 7 | . . . . 5 . 2 . . Full Trace Events . | . . . . . . . . . Feedback Events . | . . . . . . . . . Feedback Blocked . | . . . . . . . . . Robot Schematics Acquired . | . . . . . . . . . Robots Built . | . . . . . . . . . Authchips . | . . . . . . . . . Time . | . . . . . . . . . Total Robot Build Rating . | . . . . . . . . . Part Schematics Acquired 36 | . . . . 4 13 13 4 2 Parts Built . | . . . . . . . . . Authchips . | . . . . . . . . . Time . | . . . . . . . . . Total Part Build Rating . | . . . . . . . . . Part Studies Acquired . | . . . . . . . . . Parts Repaired . | . . . . . . . . . Time . | . . . . . . . . . Parts Recycled . | . . . . . . . . . Recycled Matter . | . . . . . . . . . Retrieved Matter . | . . . . . . . . . Retrieved Components 12 | . . . . 12 . . . . Parts Scanalyzed . | . . . . . . . . . Part Schematics Acquired . | . . . . . . . . . Parts Damaged . | . . . . . . . . . Bothacking | -11 -10 -10 -10 -9 -9 -6 -6 -6 ------------ Run | Yrd Mat Min Sub Rec Scr Fac Low Low Used RIF Installer . | . . . . . . . . . Robots Hacked . | . . . . . . . . . Non-combat . | . . . . . . . . . Combat . | . . . . . . . . . Robot Hacks Applied . | . . . . . . . . . Relay Couplers Released . | . . . . . . . . . Fabnet Peak Effective % . | . . . . . . . . . Robots Rewired 5 | . . . . 5 . . . . Allies Hacked . | . . . . . . . . . Hacks Repelled . | . . . . . . . . . Allies | -11 -10 -10 -10 -9 -9 -6 -6 -6 -------- Run | Yrd Mat Min Sub Rec Scr Fac Low Low Total Allies 8 | . . 3 . 5 . . . . Largest Group 5 | . . 3 3 5 5 5 . . Highest-Rated Group 59 | . . 40 40 59 59 59 . . Highest-Rated Ally 27 | . . 16 16 27 27 27 . . Total Orders . | . . . . . . . . . Ally Attacks 35 | . . 10 23 . . 2 . . Total Damage 366 | . . 82 272 . . 12 . . Kills 6 | . . 2 4 . . . . . Allies Corrupted . | . . . . . . . . . Allies Melted . | . . . . . . . . . Intel | -11 -10 -10 -10 -9 -9 -6 -6 -6 ------- Run | Yrd Mat Min Sub Rec Scr Fac Low Low Active Infowar (turns) 12976 | 39 1021 883 6620 13 . 2644 1500 256 Sensors 3822 | . . . . . . 2374 1448 . Terrain 7 | . . . 7 . . . . . Structural 12911 | 39 1021 883 6619 . . 2644 1500 205 Machine Analysis 1989 | . . . . 13 . 220 1500 256 Robot Analysis Total . | . . . . . . . . . Derelict Logs Recovered 7 | . . 1 2 . 1 . 2 1 Drone Launches . | . . . . . . . . . Drone Recoveries . | . . . . . . . . . Exploration | -11 -10 -10 -10 -9 -9 -6 -6 -6 ------------- Run | Yrd Mat Min Sub Rec Scr Fac Low Low Turns Passed 24905 | 69 1021 883 9980 2627 5873 2645 1500 307 Spaces Moved 10075 | 40 513 514 3030 1217 2561 1186 873 141 Core 27 | 22 . . 4 . . . . 1 Treads 6967 | 18 513 514 2200 . 1564 1186 873 99 Legs 3081 | . . . 826 1217 997 . . 41 Wheels . | . . . . . . . . . Hover . | . . . . . . . . . Flight . | . . . . . . . . . Fastest Speed 50 | 50 160 160 130 200 130 156 162 120 Average Speed 202 | 117 160 160 255 200 194 165 162 151 Slowest Speed 1000 | 250 160 160 1000 200 660 255 162 350 Overloaded Moves . | . . . . . . . . . Propulsion Burnouts . | . . . . . . . . . Robots Hopped . | . . . . . . . . . Potential Cave-ins . | . . . . . . . . . Cave-ins Triggered . | . . . . . . . . . Exploration Rate (%) 67 | 4 89 97 91 99 91 27 95 18 Regions Visited 8 Branch Regions 6 Pre-discovered Areas 3 | . . . 3 . . . . . Known Exits Taken 8 | 1 1 1 1 1 1 1 1 . Unknown Exits Taken . | . . . . . . . . . Scrap Searched 24 | . . 2 9 . 7 . 5 1 Spaces Dug . | . . . . . . . . . Terrain Destroyed 43 | . . . . . . 35 3 5 Melee . | . . . . . . . . . Projectile 17 | . . . . . . 9 3 5 AOE 26 | . . . . . . 26 . . Terrain Rammed . | . . . . . . . . . Walls Destroyed . | . . . . . . . . . Machines Disabled . | . . . . . . . . . Actions | -11 -10 -10 -10 -9 -9 -6 -6 -6 --------- Run | Yrd Mat Min Sub Rec Scr Fac Low Low Total 14051 | 61 656 552 5043 1393 3461 1752 949 184 Wait 3427 | 8 95 22 1823 138 815 460 63 3 Move 10067 | 39 512 513 3029 1216 2560 1185 872 141 Hop . | . . . . . . . . . Pick Up 110 | 7 10 5 27 9 42 7 1 2 Fast Attach 15 | 2 . . 1 . 3 8 . 1 Attach 50 | 5 4 . 20 2 7 5 . 7 Detach 18 | . 3 . 9 1 4 . . 1 Swap 20 | . . . 6 . 3 8 3 . Drop 80 | . 2 . 34 1 27 12 4 . Fire 244 | . 30 11 94 9 . 66 6 28 Melee . | . . . . . . . . . Ram 1 | . . . . . . . . 1 Kick 1 | . . . . 1 . . . . Crush 2 | . . 1 . . . 1 . . Escape Stasis . | . . . . . . . . . Rewire 16 | . . . . 16 . . . . Trap . | . . . . . . . . . Miscellaneous . | . . . . . . . . . Route ------- -11/Scrapyard -10/Materials (discovered 6 exits: *Mat x3 / *Min x2 / *Sub) -10/Mines (discovered 3 exits: *Mat x2 / *Sub) -10/Subcaves (discovered 3 exits: *Mat x2 / *Rec) -9/Recycling (discovered 2 exits: *Fac / *Scr) -9/Scraptown (discovered 2 exits: *Fac x2) -6/Factory (discovered 2 exits: *Fac / *Low) -6/Lower Caves -6/Lower Caves (discovered 1 exit: *Fac) History --------- Turn | Location | Event 6 | -11/Scrapyard | Identified exit to Materials 6 | -11/Scrapyard | Discovered exit to Materials (range 15) 70 | -11/Scrapyard | Entered Materials 70 | -10/Materials | Evolved 1 slot: Utility x1 74 | -10/Materials | Identified exit to Mines 74 | -10/Materials | Discovered exit to Mines (range 12) 318 | -10/Materials | Build established: Hacker-Mutant 456 | -10/Materials | Identified exit to Materials 456 | -10/Materials | Discovered exit to Materials (range 14) 770 | -10/Materials | Derelicts attacked the area 803 | -10/Materials | Discovered exit to Materials (range 9) 900 | -10/Materials | Discovered exit to Materials (range 13) 988 | -10/Materials | Identified exit to Subcaves 988 | -10/Materials | Discovered exit to Subcaves (range 11) 1073 | -10/Materials | Discovered exit to Mines (range 7) 1091 | -10/Materials | Entered Mines 1419 | -10/Mines | Assisted by bots powering up and referring to "LRC-V3" 1480 | -10/Mines | Discovered exit to Materials (range 10) 1505 | -10/Mines | Learned Materials terminal intel 1510 | -10/Mines | Discovered exit to Materials (range 5) 1512 | -10/Mines | Discovered exit to Subcaves (range 9) 1737 | -10/Mines | Found a hidden stash of uninstalled traps 1974 | -10/Mines | Entered Subcaves 1974 | -10/Subcaves | Accompanied by 3 allies 2004 | -10/Subcaves | A Subdweller sparked back to life 2036 | -10/Subcaves | Found Prototype Leg 2064 | -10/Subcaves | Ambushed by swarm of Subdwellers 2115 | -10/Subcaves | Lost 4 allies 2258 | -10/Subcaves | Identified exit to Materials 2258 | -10/Subcaves | Discovered exit to Materials (range 10) 2576 | -10/Subcaves | Learned location of Storage (-9) 2775 | -10/Subcaves | A swath of the cavern ceiling suddenly collapsed 2930 | -10/Subcaves | Discovered exit to Materials (range 10) 3075 | -10/Subcaves | Ambushed by Subdweller buried in earth 3339 | -10/Subcaves | Learned location of Zion (-7) 3339 | -10/Subcaves | Met a Zionite searching for "candidates" 3588 | -10/Subcaves | Shifting Twisted Machinery released Sub. Power Source 3631 | -10/Subcaves | Shifting Twisted Machinery released Sub. Monowheel 4417 | -10/Subcaves | Identified exit to Recycling 4417 | -10/Subcaves | Discovered exit to Recycling (range 16) 4428 | -10/Subcaves | Core integrity fell below 50% 4456 | -10/Subcaves | Lost 3 parts (1n2w) 4534 | -10/Subcaves | Visited 4L-MR0's lab 4549 | -10/Subcaves | Identified Cargo Legs 4567 | -10/Subcaves | Found Flightbrick 6649 | -10/Subcaves | Visited Clippyterm 6733 | -10/Subcaves | A swath of the cavern ceiling suddenly collapsed 7473 | -10/Subcaves | Lost 3 parts (2n1w) 8591 | -10/Subcaves | Attached Cargo Legs, gained temporary slots: Utility x2 11015 | -10/Subcaves | Found SUBCON Basin 11102 | -10/Subcaves | Disturbed a concealed Subdweller 11954 | -10/Subcaves | Entered Recycling 12149 | -9/Recycling | Scanned before Scraplab entrance 12177 | -9/Recycling | Entered Scraplab 12357 | -9/Recycling | Tech Extrapolator generated special schematic: Deep Structural Scanner 13061 | -9/Recycling | Core integrity fell below 20% 13556 | -9/Recycling | Build established: Commander-Mutant 13989 | -9/Recycling | Identified exit to Factory 13989 | -9/Recycling | Discovered exit to Factory (range 15) 14527 | -9/Recycling | Identified exit to Scraptown 14527 | -9/Recycling | Discovered exit to Scraptown (range 2) 14581 | -9/Recycling | Entered Scraptown 14581 | -9/Scraptown | Accompanied by 5 allies 14581 | -9/Scraptown | System corruption cleaned by C-Scrubber 14949 | -9/Scraptown | Visited Awakened 14985 | -9/Scraptown | Visited Cyclists 15027 | -9/Scraptown | Visited Bundlers 15117 | -9/Scraptown | Visited The Evicted 15166 | -9/Scraptown | Tech Extrapolator generated special schematic: Machine Rigger 15167 | -9/Scraptown | Visited SPCMW 15203 | -9/Scraptown | Visited Fellowship of the Rings 15257 | -9/Scraptown | Visited Cave Peace 15377 | -9/Scraptown | Heard Great Nut preacher, LISTEN AND RECITE! 15731 | -9/Scraptown | Scanned Subdweller tech in exchange for log data 15761 | -9/Scraptown | Learned Factory stockpile data 15789 | -9/Scraptown | Identified exit to Factory 15789 | -9/Scraptown | Discovered exit to Factory (range 11) 16653 | -9/Scraptown | Visited UFD Registry 16653 | -9/Scraptown | Registered with UFD as "Metalmech" 16699 | -9/Scraptown | Visited Derelict Rescue Squad 16726 | -9/Scraptown | Visited A0-MCA Data Center 16747 | -9/Scraptown | Visited DA-N13 Charitable Foundation 16761 | -9/Scraptown | Found DCF Scrap (30 items) 17214 | -9/Scraptown | Build established: Hauler-Mutant 18186 | -9/Scraptown | Build established: Commander-Mutant 18236 | -9/Scraptown | Given a B+ rating by A0-MCA 18238 | -9/Scraptown | Found A0-MCA's Component Scanner 19056 | -9/Scraptown | Visited Junk Repository 19115 | -9/Scraptown | Visited Scrapoid Research Area 19180 | -9/Scraptown | Visited Infowarlord's Domain 19234 | -9/Scraptown | Visited Botcube Research 19292 | -9/Scraptown | Delivered Scrap Shield to a Scientist 19462 | -9/Scraptown | Visited Junk Repository 19525 | -9/Scraptown | Visited Curators Association 19619 | -9/Scraptown | Visited LU-1G1's Boring Crew 19778 | -9/Scraptown | Found Exp. Signal Interpreter 20024 | -9/Scraptown | Found DRS Beacon 20207 | -9/Scraptown | Discovered exit to Factory (range 5) 20361 | -9/Scraptown | Met Optimus 20361 | -9/Scraptown | Accepted into 0bPrime 20454 | -9/Scraptown | Entered Factory 20454 | -6/Factory | Accompanied by 5 allies 20454 | -6/Factory | Evolved 8 slots: Power x1, Propulsion x2, Utility x4, Weapon x1 20564 | -6/Factory | Lost 5 allies 20863 | -6/Factory | Build established: Hacker-Skirmisher 21335 | -6/Factory | Tech Extrapolator generated special schematic: Energy Deflector 22237 | -6/Factory | Identified exit to Lower Caves 22237 | -6/Factory | Discovered exit to Lower Caves (range 16) 22818 | -6/Factory | Identified exit to Factory 22818 | -6/Factory | Discovered exit to Factory (range 13) 23099 | -6/Factory | Entered Lower Caves 23101 | -6/Lower Caves | UFD Scientist delivered a prototype 23104 | -6/Lower Caves | Learned 8 Factory zone layouts 23113 | -6/Lower Caves | Found Enh. Scrap Shield 23207 | -6/Lower Caves | Learned location of 1 exit from Factory 24502 | -6/Lower Caves | Spotted B-75 Beast 24589 | -6/Lower Caves | Identified exit to Lower Caves 24589 | -6/Lower Caves | Discovered exit to Lower Caves (range 5) 24599 | -6/Lower Caves | Entered another Lower Caves area 24622 | -6/Lower Caves | Discovered exit to Factory (range 11) 24632 | -6/Lower Caves | Learned Factory terminal intel 24640 | -6/Lower Caves | Tech Extrapolator generated special schematic: Heat Bomb Trap 24749 | -6/Lower Caves | Attracted the attention of an 0b10 outpost 24844 | -6/Lower Caves | Attached CPS modules to L-41 Fighter. 24850 | -6/Lower Caves | Core integrity fell below 50% 24861 | -6/Lower Caves | Core integrity fell below 20% 24886 | -6/Lower Caves | Lost 13 parts (2p3n5u3w) 24906 | -6/Lower Caves | Destroyed by Y-64 Sentinel with Wave Gun Last Messages --------------- 24844_ Exp. Signal Interpreter destroyed. 24844_ CPS modules attach to L-41 Fighter. 24845_ Adv. Heat Sink destroyed. 24846_ CPS Tube destroyed. 24846_ Penetrated by Slug. 24850_ Slammed into L-41 Fighter. 24851_ Critical hit (Burn: +50). 24851_ Penetrated by Slug. 24852_ Tech Extrapolator severed. 24853_ Acquired Magnetic Acceleration Cannon. 24854_ Penetrated by Slug. 24854_ Critical hit (Burn: +37). 24855_ Machine Analyzer destroyed. 24857_ Critical hit (Burn: +37). 24857_ Penetrated by Slug. 24857_ Myomer Leg severed. 24860_ Penetrated by Slug. 24884_ Slug penetrates Earth. 24893_ System corrupted: Heat flow error (+241). 24902_ Slug penetrates Wall. Map ----- +----------------------------------------------------+ | ?????????????????????????????????????????????????? | | ?????????????????????????????????????????????????? | | ?????????????????????????????????????????????????? | | ?????????????????????????????????????????????????? | | ?????????????????????????????????????????????????? | | ?????????????????????????????????????????????????? | | ?????????????????????????????????????????????????? | | ?????????????????????????????????????????????????? | | ????????????????????????????????????????????????? | | ???????????????????????????????????????????????? | | ????????????????????????????????????????????????? | | ???????????????????????????????????????????????? | | ??????????????????????????????????????????????## ? | | ??????????????????????????????????#####??????### ? | | ??????????????????????????????????#####???###### ? | | ?????????????????????????????????? #??##### ? | | ?????????????????????????????????#### ##### ? | | ????????????????????????????????##### ##### ? | | ????????????????????#####??????#### ### # # | | ???????????????????## ####???### # | | ??????????????????## # ########## # # ### | | ??????????????????# ## # ###" ## | | ??????????????????# Yg ## ## # ## | | ??????????????????## # # # # # ## ## | | ???????????????????##gl# #i # # # ##%% # ## | | ????????????????????# l @ ## # # *% "## | | ????????????????????##########==## # %%*%### | | ???????????????????????????###|*### % !%# | | ?????????????????????????##### %### % ##[####+ | | ?????????????????????????####%%!### ###%# # | | ????????????????????????### ## #*% # | | ????????????????????????## ####### / | | ????????????????????????### ############ / | | ????????????????????????#### ########???## # | | ?????????????????????????#######??????????## # # | | ??????????????????????????###?????????????## ####+ | | ??????????????????????????????????????????## | | ??????????????????????????????????????????#####??? | | ??????????????????????????????????????????#####??? | | ?????????????????????????????????????????????????? | | ?????????????????????????????????????????????????? | | ?????????????????????????????????????????????????? | | ?????????????????????????????????????????????????? | | ?????????????????????????????????????????????????? | | ?????????????????????????????????????????????????? | | ?????????????????????????????????????????????????? | | ?????????????????????????????????????????????????? | | ?????????????????????????????????????????????????? | | ?????????????????????????????????????????????????? | | ?????????????????????????????????????????????????? | +----------------------------------------------------+ Best States ------------- Heat Dissipation 56 Energy Generation 32 Energy Capacity 710 Matter Stores 500 Matter Capacity 650 Sight Range 16 Robot Scan Range 16 Terrain Scan Range 16 Terrain Scan Density 10 Armor Coverage 800 Resistance: KI 35 Resistance: TH 35 Resistance: EX 35 Resistance: EM 35 Resistance: I 35 Resistance: S 35 Resistance: P 35 Evasion (%) 55 Recoil Reduction 4 Offensive Hacking 30 Defensive Hacking 10 Authchip Count 2 Item Schematics ----------------- Deep Structural Scanner | -9/Recycling | Extrapolated Mak. Leg | -9/Recycling | Extrapolated Battle Rifle | -9/Recycling | Extrapolated Barrage Gun | -9/Recycling | Extrapolated Spk. Treads | -9/Scraptown | Extrapolated Machine Rigger | -9/Scraptown | Extrapolated Mak. Coolant Network | -9/Scraptown | Extrapolated Mak. Spear | -9/Scraptown | Extrapolated Lgt. Humpback | -9/Scraptown | Extrapolated Mak. Targeting Computer | -9/Scraptown | Extrapolated Hvy. Battle Rifle | -9/Scraptown | Extrapolated Mak. Power Shielding | -9/Scraptown | Extrapolated Mak. Trap Scanner | -9/Scraptown | Extrapolated Mak. Terrain Scanner | -9/Scraptown | Extrapolated 0b10 Decoder Chip [Generic] | -9/Scraptown | Extrapolated 0b10 Decoder Chip [Scout] | -9/Scraptown | Extrapolated 0b10 Decoder Chip [Skirmisher] | -9/Scraptown | Extrapolated Spk. Medium Treads | -6/Factory | Extrapolated Mak. Sensor Array | -6/Factory | Extrapolated Hvy. Beamcaster | -6/Factory | Extrapolated Plasma Flamer | -6/Factory | Extrapolated Mak. Terrain Scan Processor | -6/Factory | Extrapolated Bore Cannon | -6/Factory | Extrapolated Energy Deflector | -6/Factory | Extrapolated Mak. Power Source | -6/Factory | Extrapolated Multitool | -6/Factory | Extrapolated Mak. Light Armor Plating | -6/Factory | Extrapolated Tactical Coordination Suite | -6/Factory | Extrapolated Beamcaster | -6/Factory | Extrapolated Mak. Shrapnel Gun | -6/Factory | Extrapolated Mak. Hacking Suite | -6/Lower Caves | Extrapolated Mak. Medium Armor Plating | -6/Lower Caves | Extrapolated Mak. Ablative Armor | -6/Lower Caves | Extrapolated Mak. Thermal Plating | -6/Lower Caves | Extrapolated Heat Bomb Trap | -6/Lower Caves | Extrapolated Mak. Core Shielding | -6/Lower Caves | Extrapolated Robot Schematics ------------------ None Fabricated ------------ Nothing Repaired ---------- Nothing Studied --------- None Alien Tech Used ----------------- None Achievements -------------- None Challenges ------------ None Game ------ Seed CountertargetingHoverPick Manual? 0 Play Time 01:19:24 Cumulative 141.1 hours Start 2025.11.25 @ 08:25:22 End 2025.11.25 @ 09:42:12 Sessions 1 Manual Loads 0 Difficulty Explorer Special Mode None Game No. 165 Rogue 0 Adventurer 0 Explorer 165 Win Type - Total 0 Types 0/0/0/0/0/0/0/0/0/0 Lore% 69 Gallery% 66 Achievement% 51 Wizard Run 0 Options --------- Layout 1 ASCII 0 Keyboard 0 Movement Mouse Keybinds 0 Fullscreen 1 Font 24/Smallcaps Map View 50x35 Zoom Use 0% Tactical HUD 1 Map Filters NONE Filters NONE Steam 1 RUN: ffbe3e4c-1b13-4400-980f-dd72c560c0a6